fUST/lending_fUST_20250112
["ID","MTS","AMOUNT","RATE_DAILY","PERIOD"]
[348604294,1736667049286,-500.0,0.00019178,2]
[348604296,1736667049296,-500.88315773,0.00019178,2]
[348604298,1736667049306,-500.0,0.00019178,2]
[348604300,1736667049316,-500.0,0.00019178,2]
[348604302,1736667049325,-151.0,0.00019178,2]
[348604304,1736667049335,-151.0,0.00019178,2]
[348604306,1736667049344,-500.0,0.00019178,2]
[348604308,1736667049353,-151.0,0.00019178,2]
[348604310,1736667049363,-151.0,0.00019178,2]
[348604312,1736667049372,-151.0,0.00019178,2]
[348604314,1736667049381,-500.0,0.00019178,2]
[348604316,1736667049391,-151.0,0.00019178,2]
[348604318,1736667049400,-151.0,0.00019178,2]
[348604320,1736667049409,-152.136043,0.00019178,2]
[348604322,1736667049418,-500.0,0.00019178,2]
[348604324,1736667049427,-500.0,0.00019178,2]
[348604326,1736667049436,-500.0,0.00019178,2]
[348604328,1736667049446,-500.0,0.00019178,2]
[348604330,1736667049455,-501.5762986,0.00019178,2]
[348604332,1736667049465,-519.96475968,0.00019178,2]
[348604334,1736667049475,-500.0,0.00019178,2]
[348604336,1736667049484,-1400.51,0.00019178,2]
[348604338,1736667049493,-662.62,0.00019178,2]
[348604340,1736667049503,-500.0,0.00019178,2]
[348604342,1736667049512,-500.0,0.00019178,2]
[348604344,1736667049522,-500.0,0.00019178,2]
[348604346,1736667049533,-522.94413167,0.00019178,2]
[348604348,1736667049543,-500.0,0.00019178,2]
[348604350,1736667049552,-500.0,0.00019178,2]
[348604352,1736667049562,-453.74914313,0.00019178,2]
[348604354,1736667049571,-1848.8,0.00019178,2]
[348604356,1736667049582,-507.19339292,0.00019178,2]
[348604358,1736667049592,-500.0,0.00019178,2]
[348604360,1736667049601,-500.0,0.00019178,2]
[348604362,1736667049610,-509.04405564,0.00019178,2]
[348604365,1736667049620,-504.55553138,0.00019178,2]
[348604367,1736667049633,-503.04354801,0.00019178,2]
[348604369,1736667049644,-500.0,0.00019178,2]
[348604371,1736667049653,-500.0,0.00019178,2]
[348604373,1736667049663,-482.65462382,0.00019178,2]
[348604375,1736667049673,-1628.42,0.00019178,2]
[348604377,1736667049683,-500.0,0.00019178,2]
[348604379,1736667049693,-503.06977384,0.00019178,2]
[348604381,1736667049703,-500.0,0.00019178,2]
[348604383,1736667049714,-15481.48720888,0.00019178,2]
[348605462,1736667103109,171.966268,0.00013973,2]
[348605464,1736667941198,-200.0,0.00018,5]
[348605465,1736667941222,-200.0,0.00018,5]
[348605466,1736667941246,-200.0,0.00018,5]
[348605467,1736667941271,-231.653105,0.00018,5]
[348605468,1736667941294,-404.431,0.0001889,2]
[348605469,1736667941314,-393.94136238,0.000189,2]
[348605470,1736667941336,-300.0,0.00018999,2]
[348605471,1736667941361,-12982.67357767,0.00019,7]
[348605472,1736667941383,-191.01760713,0.00019078,2]
[348605473,1736667941410,-1316.11966772,0.00019078,2]
[348605474,1736667941432,-505.45068633,0.00019177,2]
[348605475,1736667941455,-199.70101933,0.00019177,2]
[348605476,1736667941482,-500.0,0.00019177,2]
[348605477,1736667941507,-500.0,0.00019177,2]
[348605478,1736667941533,-51.91734824,0.00019177,2]
[348605479,1736668008266,172.271979,0.00013973,2]
[348605480,1736668040081,-300.0,0.00019176,2]
[348605481,1736668040106,-448.08265176,0.00019177,2]
[348605482,1736668040130,-500.0,0.00019177,2]
[348605483,1736668040155,-500.0,0.00019177,2]
[348605484,1736668040178,-536.88179071,0.00019177,2]
[348605485,1736668040202,-500.0,0.00019177,2]
[348605486,1736668040226,-500.0,0.00019177,2]
[348605487,1736668040249,-500.0,0.00019177,2]
[348605488,1736668040272,-500.0,0.00019177,2]
[348605489,1736668040294,-500.0,0.00019177,2]
[348605490,1736668040316,-162.0246559,0.00019178,5]
[348605491,1736668040339,-174.48299252,0.00019178,2]
[348605492,1736668048099,-325.51700748,0.00019178,2]
[348605493,1736668048220,-151.0,0.00019178,2]
[348605494,1736668048241,-151.0,0.00019178,2]
[348605495,1736668048261,-151.0,0.00019178,2]
[348605496,1736668048282,-151.0,0.00019178,2]
[348605497,1736668048302,-151.0,0.00019178,2]
[348605498,1736668048322,-151.0,0.00019178,2]
[348605499,1736668048343,-153.568889,0.00019178,2]
[348605500,1736668048369,-151.0,0.00019178,2]
[348605501,1736668048393,-151.0,0.00019178,2]
[348605502,1736668048415,-151.0,0.00019178,2]
[348605503,1736668048439,-151.0,0.00019178,2]
[348605504,1736668048460,-151.0,0.00019178,2]
[348605505,1736668048483,-151.0,0.00019178,2]
[348605506,1736668048504,-151.0,0.00019178,2]
[348605507,1736668048526,-153.419647,0.00019178,2]
[348605508,1736668048548,-151.0,0.00019178,2]
[348605509,1736668048572,-208.86898,0.00019178,2]
[348605510,1736668048597,-151.0,0.00019178,2]
[348605511,1736668048619,-151.0,0.00019178,2]
[348605512,1736668048639,-151.0,0.00019178,2]
[348605513,1736668048659,-151.0,0.00019178,2]
[348605514,1736668048681,-151.0,0.00019178,2]
[348605515,1736668048702,-151.0,0.00019178,2]
[348605516,1736668048722,-151.0,0.00019178,2]
[348605517,1736668048743,-241.668256,0.00019178,2]
[348605518,1736668048764,-501.11764193,0.00019178,2]
[348605519,1736668048784,-312.03591875,0.00019178,2]
[348605520,1736668156147,-262.62757492,0.000189,2]
[348605521,1736668156170,-167.14040623,0.00019078,2]
[348605522,1736668156192,-300.0,0.00019177,2]
[348605523,1736668156215,-187.96408125,0.00019178,2]
[348605524,1736668156236,-500.76229939,0.00019178,2]
[348605525,1736668156257,-500.0,0.00019178,2]
[348605526,1736668156278,-500.0,0.00019178,2]
[348605527,1736668156305,-294.98514241,0.00019178,2]
[348605528,1736668156326,-500.0,0.00019178,2]
[348605529,1736668156347,-500.0,0.00019178,2]
[348605530,1736668156368,-500.0,0.00019178,2]
[348605531,1736668156389,-500.46433456,0.00019178,2]
[348605532,1736668156408,-500.0,0.00019178,2]
[348605533,1736668156430,-500.0,0.00019178,2]
[348605534,1736668156451,-179.22172672,0.00019178,2]
[348605535,1736668156471,-500.25260185,0.00019178,14]
[348605536,1736668156491,-500.0,0.00019178,2]
[348605537,1736668156512,-500.0,0.00019178,2]
[348605538,1736668156533,-510.55290046,0.00019178,2]
[348605539,1736668156556,-581.77834524,0.00019178,2]
[348605540,1736668156578,-500.0,0.00019178,2]
[348605541,1736668156598,-500.0,0.00019178,2]
[348605542,1736668156619,-500.0,0.00019178,2]
[348605543,1736668156641,-516.50708938,0.00019178,2]
[348605544,1736668156663,-500.0,0.00019178,2]
[348605545,1736668156683,-500.0,0.00019178,2]
[348605546,1736668156704,-515.40166202,0.00019178,2]
[348605547,1736668156726,-516.55672669,0.00019178,2]
[348605548,1736668156746,-500.0,0.00019178,2]
[348605549,1736668156767,-500.0,0.00019178,2]
[348605550,1736668156787,-515.3847759,0.00019178,2]
[348605551,1736668156808,-518.46424143,0.00019178,2]
[348605552,1736668156828,-500.0,0.00019178,2]
[348605553,1736668156848,-500.0,0.00019178,2]
[348605554,1736668156870,-500.0,0.00019178,2]
[348605555,1736668156890,-516.86481107,0.00019178,2]
[348605556,1736668156911,-151.0,0.00019178,2]
[348605557,1736668156934,-151.0,0.00019178,2]
[348605558,1736668156956,-500.0,0.00019178,2]
[348605559,1736668156977,-500.0,0.00019178,2]
[348605560,1736668156999,-500.0,0.00019178,2]
[348605561,1736668157022,-350.00875206,0.00019178,2]
[348605562,1736668157044,-500.0,0.00019178,2]
[348605563,1736668157067,-152.11142175,0.00019178,2]
[348605564,1736668157088,-1130.24,0.00019178,2]
[348605565,1736668157110,-500.0,0.00019178,2]
[348605566,1736668157133,-500.0,0.00019178,2]
[348605567,1736668157155,-152.790935,0.00019178,2]
[348605568,1736668157179,-500.0,0.00019178,2]
[348605569,1736668157201,-500.0,0.00019178,2]
[348605570,1736668157227,-506.26798127,0.00019178,2]
[348605571,1736668157250,-325.40911471,0.00019178,2]
[348605572,1736668157273,-500.0,0.00019178,2]
[348605573,1736668157296,-500.0,0.00019178,2]
[348605574,1736668157320,-504.64620101,0.00019178,2]
[348605575,1736668157342,-500.0,0.00019178,2]
[348605576,1736668157365,-504.21121599,0.00019178,2]
[348605577,1736668157498,-9386.62,0.00019178,2]
[348605578,1736668157522,-500.0,0.00019178,2]
[348605579,1736668157545,-500.0,0.00019178,2]
[348605580,1736668157568,-519.48586166,0.00019178,2]
[348605581,1736668157591,-527.01490392,0.00019178,2]
[348605582,1736668157614,-151.0,0.00019178,2]
[348605583,1736668157636,-500.0,0.00019178,2]
[348605584,1736668157660,-500.0,0.00019178,2]
[348605585,1736668157683,-513.56590105,0.00019178,2]
[348605586,1736668157705,-151.0,0.00019178,2]
[348605587,1736668157727,-500.0,0.00019178,2]
[348605588,1736668157750,-151.0,0.00019178,2]
[348605589,1736668157771,-500.0,0.00019178,2]
[348605590,1736668157793,-500.0,0.00019178,2]
[348605591,1736668157815,-500.0,0.00019178,2]
[348605592,1736668157838,-500.0,0.00019178,2]
[348605593,1736668157860,-500.0,0.00019178,2]
[348605594,1736668157882,-500.0,0.00019178,2]
[348605595,1736668157904,-516.2492969,0.00019178,2]
[348605596,1736668157927,-500.0,0.00019178,2]
[348605597,1736668157950,-500.0,0.00019178,2]
[348605598,1736668157971,-508.24762379,0.00019178,2]
[348605599,1736668157992,-500.0,0.00019178,2]
[348605600,1736668158014,-556.35737558,0.00019178,2]
[348605601,1736668158044,-593.39050278,0.00019178,2]
[348605602,1736668158066,-500.0,0.00019178,2]
[348605603,1736668158086,-500.0,0.00019178,2]
[348605604,1736668158108,-500.0,0.00019178,2]
[348605605,1736668158129,-503.12539118,0.00019178,2]
[348605606,1736668158151,-500.0,0.00019178,2]
[348605607,1736668158172,-483.13949394,0.00019178,2]
[348605608,1736668158194,-500.0,0.00019178,2]
[348605609,1736668158218,-502.92633302,0.00019178,2]
[348605610,1736668158239,-500.0,0.00019178,2]
[348605611,1736668158266,-590.90538172,0.00019178,2]
[348605612,1736668158289,-1412.52,0.00019178,2]
[348605613,1736668158312,-500.0,0.00019178,2]
[348605614,1736668158334,-500.0,0.00019178,2]
[348605615,1736668158357,-500.0,0.00019178,2]
[348605616,1736668158380,-500.0,0.00019178,2]
[348605617,1736668158403,-500.0,0.00019178,2]
[348605618,1736668158425,-500.0,0.00019178,2]
[348605619,1736668158447,-560.43,0.00019178,2]
[348605620,1736668158469,-500.0,0.00019178,2]
[348605621,1736668158491,-414.57074728,0.00019178,2]
[348605622,1736668158512,-510.60686834,0.00019178,2]
[348605623,1736668158533,-500.0,0.00019178,2]
[348605624,1736668158554,-533.88,0.00019178,2]
[348605625,1736668158576,-500.0,0.00019178,2]
[348605626,1736668158598,-911.05,0.00019178,2]
[348605627,1736668158620,-500.0,0.00019178,2]
[348605628,1736668158641,-500.0,0.00019178,2]
[348605629,1736668158662,-500.0,0.00019178,2]
[348605630,1736668158684,-500.0,0.00019178,2]
[348605631,1736668158705,-1341.01,0.00019178,2]
[348605632,1736668158727,-500.0,0.00019178,2]
[348605633,1736668158749,-500.0,0.00019178,2]
[348605634,1736668158771,-1355.11,0.00019178,2]
[348605635,1736668158793,-500.0,0.00019178,2]
[348605636,1736668158814,-245.52197708,0.00019178,2]
[348605637,1736668158837,-500.0,0.00019178,2]
[348605638,1736668158860,-500.0,0.00019178,2]
[348605639,1736668158884,-500.0,0.00019178,2]
[348605640,1736668158906,-508.86148091,0.00019178,2]
[348605641,1736668158929,-500.0,0.00019178,2]
[348605642,1736668158951,-500.0,0.00019178,2]
[348605643,1736668158973,-500.0,0.00019178,2]
[348605644,1736668158996,-500.0,0.00019178,2]
[348605645,1736668159017,-500.0,0.00019178,2]
[348605646,1736668159040,-500.0,0.00019178,2]
[348605647,1736668159062,-500.0,0.00019178,2]
[348605648,1736668159083,-500.0,0.00019178,2]
[348605649,1736668159106,-500.0,0.00019178,2]
[348605650,1736668159129,-632.895513,0.00019178,2]
[348605651,1736668159151,-632.895513,0.00019178,2]
[348605652,1736668159173,-500.0,0.00019178,2]
[348605653,1736668159195,-632.895513,0.00019178,2]
[348605654,1736668159219,-632.895513,0.00019178,2]
[348605655,1736668159242,-242.209229,0.00019178,2]
[348605656,1736668159264,-242.209229,0.00019178,2]
[348605657,1736668159288,-242.209229,0.00019178,2]
[348605658,1736668159310,-500.0,0.00019178,2]
[348605659,1736668159333,-242.209229,0.00019178,2]
[348605660,1736668159356,-242.209229,0.00019178,2]
[348605661,1736668159380,-242.209229,0.00019178,2]
[348605662,1736668159401,-500.0,0.00019178,2]
[348605663,1736668159423,-500.0,0.00019178,2]
[348605664,1736668159447,-500.0,0.00019178,2]
[348605665,1736668159469,-151.0,0.00019178,2]
[348605666,1736668159491,-151.0,0.00019178,2]
[348605667,1736668159513,-151.0,0.00019178,2]
[348605668,1736668159535,-500.0,0.00019178,2]
[348605669,1736668159556,-500.0,0.00019178,2]
[348605670,1736668159578,-151.0,0.00019178,2]
[348605671,1736668159599,-472.66544091,0.00019178,2]
[348605672,1736668159621,-151.0,0.00019178,2]
[348605673,1736668159644,-151.0,0.00019178,2]
[348605674,1736668159666,-500.0,0.00019178,2]
[348605675,1736668159688,-500.0,0.00019178,2]
[348605676,1736668159710,-500.0,0.00019178,2]
[348605677,1736668159731,-628.2,0.00019178,2]
[348605678,1736668159753,-355.57617866,0.00019178,2]
[348605679,1736668159775,-500.0,0.00019178,2]
[348605680,1736668159796,-500.0,0.00019178,2]
[348605681,1736668159911,-354.90164897,0.00019178,2]
[348605682,1736668159936,-561.82,0.00019178,2]
[348605683,1736668159958,-504.44263535,0.00019178,2]
[348605684,1736668159980,-500.0,0.00019178,2]
[348605685,1736668160002,-500.0,0.00019178,2]
[348605686,1736668160022,-500.0,0.00019178,2]
[348605687,1736668160043,-500.0,0.00019178,2]
[348605688,1736668160064,-639.8883854,0.00019178,2]
[348605689,1736668160085,-500.0,0.00019178,2]
[348605690,1736668160107,-500.0,0.00019178,2]
[348605691,1736668160129,-500.0,0.00019178,2]
[348605692,1736668160150,-500.0,0.00019178,2]
[348605693,1736668160170,-500.0,0.00019178,2]
[348605694,1736668160191,-300.0,0.00019178,2]
[348605695,1736668160215,-523.43,0.00019178,2]
[348605696,1736668160236,-501.32428816,0.00019178,2]
[348605697,1736668160257,-508.27173441,0.00019178,2]
[348605698,1736668160277,-500.0,0.00019178,2]
[348605699,1736668160299,-500.0,0.00019178,2]
[348605700,1736668160323,-500.0,0.00019178,2]
[348605701,1736668160345,-500.0,0.00019178,2]
[348605702,1736668160365,-500.0,0.00019178,2]
[348605703,1736668160387,-500.0,0.00019178,2]
[348605704,1736668160408,-500.0,0.00019178,2]
[348605705,1736668160429,-500.0,0.00019178,2]
[348605706,1736668160451,-500.0,0.00019178,2]
[348605707,1736668160473,-500.0,0.00019178,2]
[348605708,1736668160494,-500.0,0.00019178,2]
[348605709,1736668160515,-500.0,0.00019178,2]
[348605710,1736668160538,-500.0,0.00019178,2]
[348605711,1736668160562,-713.96,0.00019178,2]
[348605712,1736668160585,-1021.16,0.00019178,2]
[348605713,1736668160608,-500.0,0.00019178,2]
[348605714,1736668160630,-500.0,0.00019178,2]
[348605715,1736668160652,-516.71877764,0.00019178,2]
[348605716,1736668160673,-500.0,0.00019178,2]
[348605717,1736668160696,-500.0,0.00019178,2]
[348605718,1736668160716,-594.6,0.00019178,2]
[348605719,1736668160739,-500.0,0.00019178,2]
[348605720,1736668160764,-500.0,0.00019178,2]
[348605721,1736668160785,-500.0,0.00019178,2]
[348605722,1736668160806,-500.0,0.00019178,2]
[348605723,1736668160827,-925.25,0.00019178,2]
[348605724,1736668160847,-500.0,0.00019178,2]
[348605725,1736668160869,-500.0,0.00019178,2]
[348605726,1736668160890,-500.0,0.00019178,2]
[348605727,1736668160911,-500.0,0.00019178,2]
[348605728,1736668160936,-500.0,0.00019178,2]
[348605729,1736668160957,-500.0,0.00019178,2]
[348605730,1736668160979,-309.94926545,0.00019178,2]
[348605731,1736668161001,-500.0,0.00019178,2]
[348605732,1736668161022,-500.0,0.00019178,2]
[348605733,1736668161044,-500.0,0.00019178,2]
[348605734,1736668161065,-500.0,0.00019178,2]
[348605735,1736668161086,-500.0,0.00019178,2]
[348605736,1736668161108,-500.0,0.00019178,2]
[348605737,1736668161130,-500.0,0.00019178,2]
[348605738,1736668161153,-500.0,0.00019178,2]
[348605739,1736668161175,-519.71,0.00019178,2]
[348605740,1736668161197,-1000.0,0.00019178,2]
[348605741,1736668161221,-500.0,0.00019178,2]
[348605742,1736668161242,-500.0,0.00019178,2]
[348605743,1736668161262,-608.6709013,0.00019178,2]
[348605744,1736668161283,-451.95790595,0.00019178,2]
[348605745,1736668161304,-505.20994744,0.00019178,2]
[348605746,1736668161325,-500.0,0.00019178,2]
[348605747,1736668161346,-500.0,0.00019178,2]
[348605748,1736668161368,-500.0,0.00019178,2]
[348605749,1736668161389,-500.0,0.00019178,2]
[348605750,1736668161410,-500.0,0.00019178,2]
[348605751,1736668161430,-500.0,0.00019178,2]
[348605752,1736668161451,-500.0,0.00019178,2]
[348605753,1736668161472,-500.0,0.00019178,2]
[348605754,1736668161493,-500.0,0.00019178,2]
[348605755,1736668161514,-351.3086391,0.00019178,2]
[348605756,1736668161536,-500.0,0.00019178,2]
[348605757,1736668161559,-500.0,0.00019178,2]
[348605758,1736668161580,-257.00873844,0.00019178,2]
[348605759,1736668161601,-1426.86,0.00019178,2]
[348605760,1736668161623,-506.49772625,0.00019178,2]
[348605761,1736668161644,-151.0,0.00019178,2]
[348605762,1736668161666,-151.0,0.00019178,2]
[348605763,1736668161686,-500.0,0.00019178,2]
[348605764,1736668161707,-151.0,0.00019178,2]
[348605765,1736668161728,-151.0,0.00019178,2]
[348605766,1736668161749,-500.0,0.00019178,2]
[348605767,1736668161771,-500.0,0.00019178,2]
[348605768,1736668161795,-500.0,0.00019178,2]
[348605769,1736668161817,-500.0,0.00019178,2]
[348605770,1736668161839,-151.0,0.00019178,2]
[348605771,1736668161861,-151.0,0.00019178,2]
[348605772,1736668161884,-151.0,0.00019178,2]
[348605773,1736668161908,-151.0,0.00019178,2]
[348605774,1736668161934,-500.0,0.00019178,2]
[348605775,1736668161959,-3412.91,0.00019178,2]
[348605776,1736668161980,-500.0,0.00019178,2]
[348605777,1736668162002,-500.0,0.00019178,2]
[348605778,1736668162024,-500.0,0.00019178,2]
[348605779,1736668162046,-500.0,0.00019178,2]
[348605780,1736668162069,-500.0,0.00019178,2]
[348605781,1736668162182,-500.0,0.00019178,2]
[348605782,1736668162205,-500.0,0.00019178,2]
[348605783,1736668162231,-500.0,0.00019178,2]
[348605784,1736668162253,-511.13370521,0.00019178,2]
[348605785,1736668162274,-500.0,0.00019178,2]
[348605786,1736668162297,-501.34102626,0.00019178,2]
[348605787,1736668162320,-500.0,0.00019178,2]
[348605788,1736668162342,-566.67,0.00019178,2]
[348605789,1736668162365,-566.67,0.00019178,2]
[348605790,1736668162390,-566.67,0.00019178,2]
[348605791,1736668162411,-566.67,0.00019178,2]
[348605792,1736668162433,-566.67,0.00019178,2]
[348605793,1736668162454,-566.67,0.00019178,2]
[348605794,1736668162475,-566.67,0.00019178,2]
[348605795,1736668162498,-500.0,0.00019178,2]
[348605796,1736668162519,-566.67,0.00019178,2]
[348605797,1736668162542,-517.37,0.00019178,2]
[348605798,1736668162564,-566.67,0.00019178,2]
[348605799,1736668162585,-566.67,0.00019178,2]
[348605800,1736668162606,-566.67,0.00019178,2]
[348605801,1736668162628,-566.67,0.00019178,2]
[348605802,1736668162650,-566.67,0.00019178,2]
[348605803,1736668162671,-566.67,0.00019178,2]
[348605804,1736668162693,-512.47731852,0.00019178,2]
[348605805,1736668162715,-566.67,0.00019178,2]
[348605806,1736668162737,-566.67,0.00019178,2]
[348605807,1736668162759,-566.67,0.00019178,2]
[348605808,1736668162780,-566.67,0.00019178,2]
[348605809,1736668162802,-613.25165781,0.00019178,2]
[348605810,1736668162823,-500.0,0.00019178,2]
[348605811,1736668162843,-346.25252061,0.00019178,2]
[348605812,1736668162864,-500.0,0.00019178,2]
[348605813,1736668162885,-500.0,0.00019178,2]
[348605814,1736668162907,-500.0,0.00019178,2]
[348605815,1736668162929,-500.0,0.00019178,2]
[348605816,1736668162951,-500.0,0.00019178,2]
[348605817,1736668162975,-500.0,0.00019178,2]
[348605818,1736668162997,-500.0,0.00019178,2]
[348605819,1736668163019,-500.0,0.00019178,2]
[348605820,1736668163041,-500.0,0.00019178,2]
[348605821,1736668163065,-824.25,0.00019178,2]
[348605822,1736668163087,-500.0,0.00019178,2]
[348605823,1736668163108,-917.98,0.00019178,2]
[348605824,1736668163130,-500.0,0.00019178,2]
[348605825,1736668163151,-357.3076212,0.00019178,2]
[348606038,1736668240121,-300.0,0.00019177,2]
[348606039,1736668240131,-143.92061092,0.00019178,2]
[348606040,1736668240141,-500.0,0.00019178,2]
[348606041,1736668240150,-500.0,0.00019178,2]
[348606042,1736668240159,-500.0,0.00019178,2]
[348606043,1736668240168,-75.73554173,0.00019178,2]
[348606044,1736668240304,-424.26445827,0.00019178,2]
[348606045,1736668240313,-16.66252297,0.00019178,2]
[348606046,1736668241598,-483.33747703,0.00019178,2]
[348606047,1736668241610,-85.71497751,0.00019178,2]
[348606048,1736668241623,-415.33230134,0.00019178,2]
[348606049,1736668241634,-500.0,0.00019178,2]
[348606050,1736668241643,-500.0,0.00019178,2]
[348606051,1736668241652,-500.0,0.00019178,2]
[348606052,1736668241662,-503.51406229,0.00019178,2]
[348606053,1736668241673,-500.49,0.00019178,2]
[348606054,1736668241683,-500.0,0.00019178,2]
[348606055,1736668241691,-500.0,0.00019178,2]
[348606056,1736668241701,-500.0,0.00019178,2]
[348606057,1736668241710,-1309.91,0.00019178,2]
[348606058,1736668241719,-500.0,0.00019178,2]
[348606059,1736668241728,-577.31917132,0.00019178,2]
[348606060,1736668241737,-500.0,0.00019178,2]
[348606061,1736668241746,-500.0,0.00019178,2]
[348606062,1736668241755,-502.05637478,0.00019178,2]
[348606063,1736668241764,-512.45520401,0.00019178,2]
[348606064,1736668241774,-502.03660799,0.00019178,2]
[348606065,1736668241783,-500.0,0.00019178,2]
[348606066,1736668241793,-500.0,0.00019178,2]
[348606067,1736668241802,-500.0,0.00019178,2]
[348606068,1736668241811,-500.0,0.00019178,2]
[348606069,1736668241821,-500.0,0.00019178,2]
[348606070,1736668241830,-500.0,0.00019178,2]
[348606071,1736668241840,-569.16001379,0.00019178,2]
[348606072,1736668241849,-500.0,0.00019178,2]
[348606073,1736668241858,-500.0,0.00019178,2]
[348606074,1736668241867,-500.0,0.00019178,2]
[348606075,1736668241879,-500.0,0.00019178,2]
[348606076,1736668241889,-500.0,0.00019178,2]
[348606077,1736668241899,-500.0,0.00019178,2]
[348606078,1736668241910,-500.0,0.00019178,2]
[348606079,1736668241921,-500.0,0.00019178,2]
[348606080,1736668241931,-500.0,0.00019178,2]
[348606081,1736668241940,-501.59710977,0.00019178,2]
[348606082,1736668241949,-500.0,0.00019178,2]
[348606083,1736668241960,-500.36861258,0.00019178,2]
[348606084,1736668241969,-500.0,0.00019178,2]
[348606085,1736668241978,-500.62849503,0.00019178,2]
[348606086,1736668241987,-500.0,0.00019178,2]
[348606087,1736668241996,-635.01,0.00019178,2]
[348606088,1736668242006,-501.6459253,0.00019178,2]
[348606089,1736668242016,-500.0,0.00019178,2]
[348606090,1736668242026,-500.0,0.00019178,2]
[348606091,1736668242036,-500.0,0.00019178,2]
[348606092,1736668242046,-500.0,0.00019178,2]
[348606093,1736668242057,-500.89414685,0.00019178,2]
[348606094,1736668242067,-2143.36,0.00019178,2]
[348606095,1736668242076,-2143.36,0.00019178,2]
[348606096,1736668242085,-2143.36,0.00019178,2]
[348606097,1736668242095,-2143.36,0.00019178,2]
[348606098,1736668242104,-2143.36,0.00019178,2]
[348606099,1736668242114,-2143.36,0.00019178,2]
[348606100,1736668242124,-500.0,0.00019178,2]
[348606101,1736668242134,-2143.36,0.00019178,2]
[348606102,1736668242143,-170.15085113,0.00019178,2]
[348606103,1736668242153,-2143.36,0.00019178,2]
[348606104,1736668242162,-2143.36,0.00019178,2]
[348606105,1736668242171,-2143.36,0.00019178,2]
[348606106,1736668242181,-500.0,0.00019178,2]
[348606107,1736668242191,-2143.36,0.00019178,2]
[348606108,1736668242200,-500.0,0.00019178,2]
[348606109,1736668242209,-2143.36,0.00019178,2]
[348606110,1736668242219,-500.0,0.00019178,2]
[348606111,1736668242227,-500.0,0.00019178,2]
[348606112,1736668242238,-500.0,0.00019178,2]
[348606113,1736668242253,-40241.55,0.00019178,2]
[348606114,1736668242263,-1425.49,0.00019178,2]
[348606115,1736668242272,-500.0,0.00019178,2]
[348606116,1736668242281,-500.80006492,0.00019178,2]
[348606117,1736668242291,-1855.1,0.00019178,2]
[348606118,1736668242300,-500.0,0.00019178,2]
[348606119,1736668242309,-500.0,0.00019178,2]
[348606120,1736668242319,-500.0,0.00019178,2]
[348606121,1736668242328,-500.0,0.00019178,2]
[348606122,1736668242338,-1279.09,0.00019178,2]
[348606124,1736668242347,-1643.91,0.00019178,2]
[348606131,1736668242430,-157.31488057,0.00019178,2]
[348606501,1736668246285,-563.02181557,0.00019178,2]
[348606602,1736668874345,174.723793,0.00013973,2]
[348606603,1736669347106,-417.118,0.0001874,2]
[348606604,1736669347126,-72.882,0.000189,2]
[348606605,1736669356129,-171.9350108,0.000189,2]